Cogmind - Beta 15 *** ADVENTURER MODE // 2025.05.07 @ 06:18:14 Player: Tisa Result: Smashed by cave-in Performance ------------- Evolutions (0) 0 Regions Visited (1) 200 Robots Destroyed (10) 50 Value Destroyed (212) 212 Prototype IDs (0) 0 Alien Tech Used (0) 0 Bonus (0) 0 TOTAL SCORE: 462 Bonus ------- None Cogmind --------- Core Integrity 0/250 Matter 300/300 Energy 100/100 System Corruption 11% Temperature Cool (0) Movement Core (350) Ox6 Location -10/Materials Parts ------- > --- POWER (1) -------- (None) > --- PROPULSION (2) --- (None) > --- UTILITY (2) ------ Large Storage Unit > --- WEAPON (2) ------- (None) > --- INVENTORY (15) --- Light Treads Light Treads Light Treads Huge Storage Unit Sensor Array Light Assault Rifle Peak State ------------ > --- POWER ------------ Ion Engine > --- PROPULSION ------- Light Treads Light Treads > --- UTILITY ---------- Small Storage Unit Small Storage Unit > --- WEAPON ----------- EM Pulse Gun Light Assault Rifle > --- INVENTORY -------- Light Assault Rifle [Rating: 7] Favorites ----------- Power Ion Engine Engine Ion Engine Propulsion Light Treads Treads Light Treads Utility Small Storage Unit Storage Small Storage Unit Weapon Light Assault Rifle Energy Gun EM Pulse Gun Ballistic Gun Light Assault Rifle Slashing Weapon Mining Claw Build | -11 -10 ------- Run | Yrd Mat Slots Evolved . | . . Power . | . . Propulsion . | . . Utility . | . . Weapon . | . . Parts Attached 9 | 7 2 Power 1 | 1 . Engine 1 | 1 . Core . | . . Reactor . | . . Propulsion 2 | 2 . Treads 2 | 2 . Leg . | . . Wheel . | . . Hover . | . . Flight . | . . Utility 3 | 2 1 Device . | . . Storage 3 | 2 1 Processor . | . . Hackware . | . . Protection . | . . Artifact . | . . Weapon 3 | 2 1 Energy Gun 1 | 1 . Energy Cannon . | . . Ballistic Gun 1 | 1 . Ballistic Cannon . | . . Launcher . | . . Special Weapon . | . . Impact Weapon . | . . Slashing Weapon 1 | . 1 Piercing Weapon . | . . Special Melee Weapon . | . . Unidentified Prototypes . | . . Parts Lost 5 | . 5 Power 1 | . 1 Propulsion 2 | . 2 Utility . | . . Weapon 2 | . 2 Highest Loss Streak 5 | . 5 To Critical Strikes . | . . Average Backups 3 | . 3 Power . | . . Propulsion 1 | . 1 Utility . | . 1 Weapon 1 | . 1 Tool/Special . | . . Unused Backups 6 | . 6 Power . | . . Propulsion 3 | . 3 Utility 2 | . 2 Weapon 1 | . 1 Tool/Special . | . . Average Slot Usage (%) 88 | . 88 Engine 13 | . 13 Treads 26 | . 26 Storage 20 | . 20 Energy Gun 11 | . 11 Ballistic Gun 14 | . 14 Slashing Weapon 1 | . 1 Peak Build Rating 7 | 7 7 Average Rating 6 | 5 6 On Entrance 3 | . 7 Naked Turns . | . . Heaviest Build 28 | 18 28 Greatest Support 40 | 40 40 Greatest Overweight (x) . | . . Average Overweight (x) . | . . Largest Inventory Capacity 15 | 8 15 Average Capacity 9 | 7 9 Most Carried 8 | 3 8 Average Carried 3 | 1 3 Final Capacity 15 | 8 15 Final Carried 6 | 1 6 Class Distribution -------------------- 100% | Mutant Dominant Class ---------------- Mutant | -10/Materials Resources | -11 -10 ----------- Run | Yrd Mat Matter Collected 307 | 279 28 Remotely . | . . Salvage Created 343 | 136 207 Parts 23 | 11 12 Haulers Intercepted . | . . Recyclers Shooed 2 | 1 1 Parts Field Recycled . | . . Retrieved Matter . | . . Parts Self-Destructed . | . . Prevented . | . . Kills | -11 -10 ------- Run | Yrd Mat Combat Hostiles Destroyed 4 | . 4 Guns 4 | . 4 Classes Destroyed 4 | 2 2 Tunneler 4 | 4 . Recycler 1 | 1 . Watcher 1 | . 1 Grunt 4 | . 4 Best Kill Streak 3 | 3 2 Combat Bots Only 2 | . 2 Max Kills in Single Turn 1 | 1 1 Gunslinging . | . . Exploded . | . . Melee . | . . Uniques/NPCs Destroyed . | . . Combat | -11 -10 -------- Run | Yrd Mat Hostile Shots Fired 25 | . 25 Missed 7 | . 7 Hits 18 | . 18 Projectile 18 | . 18 Critical Strikes 1 | . 1 Damage Taken 899 | 14 885 Core 262 | 7 255 Absorbed by Shields . | . . Ignored by Resistances 61 | 4 57 Core Remaining (%) 97 | 97 . Volleys Fired 30 | 9 21 Largest 2 | 2 2 Hottest 60 | 60 60 Shots Fired 57 | 18 39 Gun 57 | 18 39 Cannon . | . . Launcher . | . . Special . | . . Kinetic 30 | 9 21 Thermal . | . . Explosive . | . . Electromagnetic 27 | 9 18 Robot Hit Streak 16 | 5 16 Robot Miss Streak 2 | 1 2 Penetration Max . | . . Secondary Targets 1 | . 1 Max Gunslinging Chain 1 | . 1 Shots Hit Robots 42 | 12 30 Core Hits 20 | 7 13 Critical Kills . | . . Critical Parts Destroyed . | . . Critical Strikes 1 | . 1 Corrupt 1 | . 1 Melee Attacks 15 | . 15 Impact . | . . Slashing 15 | . 15 Piercing . | . . Sneak Attacks . | . . Combat Hostiles . | . . Follow-up Attacks . | . . Damage Inflicted 536 | 202 334 Guns 469 | 135 334 Cannons . | . . Explosions 67 | 67 . Melee . | . . Ramming . | . . Kinetic 161 | 30 131 Thermal 67 | 67 . Explosive . | . . Electromagnetic 308 | 105 203 Impact . | . . Slashing . | . . Piercing . | . . Highest Corruption 8 | . 8 Average Corruption 5 | . 5 Corruption Purged . | . . Corruption Blocked . | . . Overload Shots . | . . Overflow Damage 6 | 6 . Projectiles . | . . Explosions 6 | 6 . Melee . | . . Knockbacks . | . . Impact . | . . Kinetic . | . . Secondary . | . . Self-Inflicted Damage 14 | 14 . Shots 1 | 1 . Rammed . | . . Targets Rammed . | . . Kicked . | . . Crushed . | . . Highest Temperature 154 | 40 154 Average Temperature 49 | 20 61 Received Heat Transfer 153 | . 153 Siege Activations . | . . Martial Activations . | . . Shielding Activations . | . . Robots Disrupted . | . . Combat Hostiles . | . . Robots Corrupted . | . . Combat Hostiles . | . . Parts Fried . | . . Impact Corruptions . | . . Robots Melted . | . . Combat Hostiles . | . . Parts Melted . | . . Heat Transferred 100 | 100 . Parts Sabotaged . | . . Parts Stolen . | . . Parts Stripped . | . . Power Chain Reactions 1 | 1 . Alert | -11 -10 ------- Run | Yrd Mat Maximum Alert Level . | . . Low Security (%) 100 | 100 100 Level 1 . | . . Level 2 . | . . Level 3 . | . . Level 4 . | . . Level 5 . | . . High Security . | . . Max Security . | . . Peak Influence 40 | 10 40 Initial . | . . Average 5 | 1 6 Influence Increases 142 | 25 117 Destroy 0b10 Robot/C 80 | . 80 Destroy 0b10 Robot/NC 30 | 25 5 Destroy Leader 22 | . 22 Successful Hack 5 | . 5 Destroy Structure 5 | . 5 Influence Decreases 142 | 25 117 Time Decay 142 | 25 117 Squads Dispatched 1 | . 1 Investigation 1 | . 1 Extermination . | . . Reinforcement . | . . Assault . | . . Garrison . | . . Intercept . | . . Searches Triggered . | . . Construction Impeded . | . . Haulers Reinforced . | . . Active Scanning Responses . | . . Cargo Convoy Interrupts . | . . Stealth | -11 -10 --------- Run | Yrd Mat Distress Signals . | . . Communications Jammed . | . . Distress Signals . | . . Times Spotted 9 | . 9 Peak Tracking Total 3 | . 3 Tactical Retreats . | . . Traps | -11 -10 ------- Run | Yrd Mat Traps Triggered 1 | . 1 Indirectly . | . . Trap Hack Attempts . | . . Triggered . | . . Disarmed . | . . Reprogrammed . | . . Reused . | . . Traps Extracted . | . . Installed . | . . Triggered . | . . Machines | -11 -10 ---------- Run | Yrd Mat Machines Disabled . | . . Max in Single Turn . | . . Machines Repaired . | . . Machines Dismantled . | . . Machines Sabotaged . | . . Overloaded Fab Kills . | . . Hacking | -11 -10 --------- Run | Yrd Mat Machines Accessed 1 | . 1 Terminals 1 | . 1 Fabricators . | . . Repair Stations . | . . Recycling Units . | . . Scanalyzers . | . . Garrison Access . | . . Total Hacks 3 | . 3 Successful 2 | . 2 Failed 1 | . 1 Catastrophic . | . . Database Lockouts . | . . Manual 2 | . 2 Terminals 3 | . 3 Fabricators . | . . Repair Stations . | . . Recycling Units . | . . Scanalyzers . | . . Garrison Access . | . . Terminal Hacks 1 | . 1 Terminal Index 1 | . 1 Fabricator Hacks . | . . Repair Station Hacks . | . . Recycling Unit Hacks . | . . Scanalyzer . | . . Garrison Access Hacks . | . . Unauthorized Hacks 1 | . 1 Terminals 1 | . 1 Operators 1 | . 1 Fabricators . | . . Repair Stations . | . . Recycling Units . | . . Scanalyzers . | . . Garrison Access . | . . Data Cores Recovered . | . . Used . | . . Hacking Detections 1 | . 1 Full Trace Events 1 | . 1 Feedback Events . | . . Feedback Blocked . | . . Robot Schematics Acquired . | . . Robots Built . | . . Authchips . | . . Time . | . . Total Robot Build Rating . | . . Part Schematics Acquired . | . . Parts Built . | . . Authchips . | . . Time . | . . Total Part Build Rating . | . . Parts Repaired . | . . Time . | . . Parts Recycled . | . . Recycled Matter . | . . Retrieved Matter . | . . Retrieved Components . | . . Parts Scanalyzed . | . . Part Schematics Acquired . | . . Parts Damaged . | . . Bothacking | -11 -10 ------------ Run | Yrd Mat Used RIF Installer . | . . Robots Hacked . | . . Non-combat . | . . Combat . | . . Robot Hacks Applied . | . . Relay Couplers Released . | . . Fabnet Peak Effective % . | . . Robots Rewired . | . . Allies Hacked . | . . Hacks Repelled . | . . Allies | -11 -10 -------- Run | Yrd Mat Total Allies . | . . Largest Group . | . . Highest-Rated Group . | . . Highest-Rated Ally . | . . Total Orders . | . . Ally Attacks . | . . Total Damage . | . . Kills . | . . Allies Corrupted . | . . Allies Melted . | . . Intel | -11 -10 ------- Run | Yrd Mat Active Infowar (turns) . | . . Robot Analysis Total . | . . Derelict Logs Recovered . | . . Drone Launches . | . . Drone Recoveries . | . . Exploration | -11 -10 ------------- Run | Yrd Mat Turns Passed 838 | 146 692 Spaces Moved 392 | 70 322 Core 5 | 5 . Treads 387 | 65 322 Legs . | . . Wheels . | . . Hover . | . . Flight . | . . Fastest Speed 50 | 50 160 Average Speed 158 | 152 160 Slowest Speed 160 | 160 160 Overloaded Moves . | . . Propulsion Burnouts . | . . Robots Hopped . | . . Potential Cave-ins 4 | . 4 Cave-ins Triggered 5 | . 5 Exploration Rate (%) 27 | 4 51 Regions Visited 1 Branch Regions . Pre-discovered Areas . | . . Known Exits Taken . | . . Unknown Exits Taken 1 | 1 . Scrap Searched . | . . Spaces Dug 12 | . 12 Terrain Destroyed 18 | 6 12 Melee 12 | . 12 Projectile . | . . AOE 6 | 6 . Terrain Rammed . | . . Walls Destroyed . | . . Machines Disabled . | . . Actions | -11 -10 --------- Run | Yrd Mat Total 529 | 93 436 Wait 66 | . 66 Move 391 | 69 322 Hop . | . . Pick Up 15 | 8 7 Fast Attach . | . . Attach 9 | 7 2 Detach . | . . Swap . | . . Drop 3 | . 3 Fire 30 | 9 21 Melee 15 | . 15 Ram . | . . Kick . | . . Crush . | . . Escape Stasis . | . . Rewire . | . . Trap . | . . Miscellaneous . | . . Route ------- -11/Scrapyard -10/Materials (discovered 2 exits: [*Mat] / [*Min]) History --------- Turn | Location | Event 3 | -11/Scrapyard | Discovered new exit (range 15) 147 | -11/Scrapyard | Entered Materials 300 | -10/Materials | Build established: Mutant 440 | -10/Materials | Discovered new exit (range 14) 547 | -10/Materials | Discovered new exit (range 10) 789 | -10/Materials | Crushed by falling debris 807 | -10/Materials | Crushed by falling debris 807 | -10/Materials | Core integrity fell below 50% 813 | -10/Materials | Crushed by falling debris 813 | -10/Materials | Crushed by falling debris 813 | -10/Materials | Core integrity fell below 20% 840 | -10/Materials | Crushed by falling debris 840 | -10/Materials | Smashed by cave-in Last Messages --------------- Crushed by falling debris. [Achievement: Unlikely Earthworm] Mining Claw destroyed. System corrupted by crushing effect (+1). The unstable cave ceiling collapses. Crushed by falling debris. Lgt. Treads destroyed. System corrupted by crushing effect (+3). Lgt. Treads destroyed. System corrupted by crushing effect (+3). The unstable cave ceiling collapses. Crushed by falling debris. The unstable cave ceiling collapses. Crushed by falling debris. Ion Engine destroyed. System corrupted by crushing effect (+1). The unstable cave ceiling collapses. Crushed by falling debris. Lgt. Assault Rifle destroyed. System corrupted by crushing effect (+3). Map ----- +----------------------------------------------------+ | ?????# #???#####+############ # % #?? | | ?????# #???# # # ##########?? | | ??????# #????# # # #??????????? | | ######## ####### ! # + #??????????? | | # # # * # =! #""" # #??????????? | | # """ + + # "" =! #""" # #??????????? | | # "R" # # ! ! # "Y = #""" # #??????????? | | # " " # # # "" # # #??????????? | | # # ####### ######## #??????????? | | # # ######################## #??????????? | | #####+## #??????????? | | ????# #??????????? | | ????# #??????????? | | ??########### ##/################ #??????????? | | ??# # # #??????????# #??????????? | | ??# + # #??????????# #??????????? | | ??# # + #??????????# #??????????? | | ??# """ """ # # #??????????# ??????????? | | ??# """ """ # ## #??????????# ?????????? | | ??# """ """ # ## #??????????+ ????????? | | ??# + ## #??????????# ???????? | | ??# ##%## #??????????# ??????? | | ??############ ## #??????????# ?????? | | ?????????????# ## #??????????#= """ #????? | | ??????######## ## ####???????? """ ?????? | | ??????# # ## ##@#???????? "??????????? | | ??????# + #? ####???????? ???????????? | | ??????# # #?######## #??????????????????????? | | ??????# # #??????### #??????????????????????? | | ??????# + #??#####"# ##?????????????????????? | | ??????# # #### ## #?????????????????????? | | ??????#####+## # ####?????????????????????? | | ???#??????# ^ # #????????????????????????? | | ### ?????#^ # #????????????????????????? | | # ????# ^^ # #????????????????????????? | | # ?#### ^ # #????????????????????????? | | ? # ^ = = # #????????????????????????? | | ??# # = # #????????????????????????? | | ???# = + ##???????????????????????? | | ?????# # # "#???????????????????????? | | ???????# # ##???????????????????????? | | ???????# ##T#### #????????????????????????? | | ???????# #############????????????????????????? | | ???????# # #??????????????????????????? | | ???????# !=# ##?????????????????????????? | | ???????# *%[# "#?????????????????????????? | | ???????# =%# """ [ ##?????????????????????????? | | ???????# !/ """ !!#??????????????????????????? | | ???????# # """ !!#??????????????????????????? | | ???????# < # #??????????????????????????? | +----------------------------------------------------+ Best States ------------- Heat Dissipation 25 Energy Generation 10 Energy Capacity 250 Matter Stores 300 Matter Capacity 300 Sight Range 16 Terrain Scan Density 10 Resistance: KI 20 Resistance: TH 20 Resistance: EX 20 Resistance: EM 20 Resistance: I 20 Resistance: S 20 Resistance: P 20 Evasion (%) 40 Recoil Reduction 2 Offensive Hacking 10 Item Schematics ----------------- None Robot Schematics ------------------ None Fabricated ------------ Nothing Repaired ---------- Nothing Alien Tech Used ----------------- None Achievements -------------- Part-time Excavator Unlikely Earthworm Challenges ------------ None Game ------ Seed FireSwarmMicrothruster Manual? 0 Play Time 00:07:33 Cumulative 6.7 hours Start 2025.05.07 @ 06:08:39 End 2025.05.07 @ 06:18:14 Sessions 1 Manual Loads 0 Difficulty Adventurer Special Mode None Game No. 10 Rogue 0 Adventurer 10 Explorer 0 Win Type - Total 0 Types 0/0/0/0/0/0/0/0/0/0 Lore% 17 Gallery% 9 Achievement% 15 Wizard Run 0 Options --------- Layout 2 ASCII 0 Keyboard 0 Movement Mouse Keybinds 0 Fullscreen 1 Font 24/Smallcaps Map View 50x44 Zoom Use 0% Tactical HUD 0 Map Filters NONE Filters NONE Steam 1 RUN: b835be30-b96e-4df5-97f5-f76b06c3982f